[Event "Early-Titled-Tuesday-Blitz-January-23-2024"]
[Site "Chess.com"]
[Date "2024.01.23"]
[Round "10"]
[White "RantomOpening"]
[Black "DTChess"]
[Result "1-0"]
[WhiteElo "2531"]
[BlackElo "2610"]
[TimeControl "180+1"]
[EndTime "9:57:04 PST"]
[Termination "RantomOpening won by resignation"]

1. e4 {[%clk 0:02:42.7]} 1... e5 {[%clk 0:02:59.6]} 2. Nf3 {[%clk 0:02:41.9]}
2... Nc6 {[%clk 0:02:59]} 3. c3 {[%clk 0:02:42]} 3... g6 {[%clk 0:02:58.8]} 4.
d4 {[%clk 0:02:41.6]} 4... Bg7 {[%clk 0:02:59.3]} 5. d5 {[%clk 0:02:41.2]} 5...
Nce7 {[%clk 0:02:59.5]} 6. c4 {[%clk 0:02:41.8]} 6... d6 {[%clk 0:02:59.6]} 7.
Nc3 {[%clk 0:02:42.2]} 7... Nf6 {[%clk 0:02:57.7]} 8. Be2 {[%clk 0:02:32.2]}
8... O-O {[%clk 0:02:57.6]} 9. O-O {[%clk 0:02:32.3]} 9... h6 {[%clk 0:02:56.6]}
10. Be3 {[%clk 0:02:30.8]} 10... Nh5 {[%clk 0:02:55.7]} 11. Re1 {[%clk
0:02:27.9]} 11... Nf4 {[%clk 0:02:52.3]} 12. Bf1 {[%clk 0:02:26.1]} 12... g5
{[%clk 0:02:51.2]} 13. g3 {[%clk 0:02:25.7]} 13... Nfg6 {[%clk 0:02:51.4]} 14.
Bg2 {[%clk 0:02:25.3]} 14... f5 {[%clk 0:02:50.7]} 15. exf5 {[%clk 0:02:24.4]}
15... Nxf5 {[%clk 0:02:49.4]} 16. Nd2 {[%clk 0:02:23.1]} 16... b6 {[%clk
0:02:34.8]} 17. Qh5 {[%clk 0:02:20]} 17... Qe8 {[%clk 0:02:29.6]} 18. Nb5 {[%clk
0:02:17.9]} 18... Qf7 {[%clk 0:02:18.9]} 19. Nxc7 {[%clk 0:02:12.8]} 19... Qxc7
{[%clk 0:02:18.5]} 20. Qxg6 {[%clk 0:02:12.4]} 20... Qe7 {[%clk 0:02:06.6]} 21.
Be4 {[%clk 0:02:06.7]} 21... Rf6 {[%clk 0:02:00.3]} 22. Qh5 {[%clk 0:02:04.9]}
22... Bd7 {[%clk 0:01:58.6]} 23. Bg2 {[%clk 0:01:39.7]} 23... Raf8 {[%clk
0:01:48.6]} 24. Ne4 {[%clk 0:01:37.5]} 24... R6f7 {[%clk 0:01:46.2]} 25. Bxg5
{[%clk 0:01:30.1]} 25... hxg5 {[%clk 0:01:40.6]} 26. Nxg5 {[%clk 0:01:31]} 26...
Nh6 {[%clk 0:01:37.6]} 27. Nxf7 {[%clk 0:01:28.3]} 27... Rxf7 {[%clk 0:01:35.9]}
28. b4 {[%clk 0:00:59.3]} 28... Bg4 {[%clk 0:01:27.4]} 29. Qh4 {[%clk
0:00:58.9]} 29... Qxh4 {[%clk 0:01:27.3]} 30. gxh4 {[%clk 0:00:59.8]} 30... Nf5
{[%clk 0:01:27.9]} 31. c5 {[%clk 0:00:54.6]} 31... bxc5 {[%clk 0:01:24.4]} 32.
bxc5 {[%clk 0:00:55.5]} 32... dxc5 {[%clk 0:01:18.2]} 33. d6 {[%clk 0:00:45.9]}
33... Rd7 {[%clk 0:01:16.3]} 34. f3 {[%clk 0:00:46.3]} 34... Bh5 {[%clk
0:01:15.3]} 35. Bh3 {[%clk 0:00:46.9]} 35... Bg6 {[%clk 0:01:12.6]} 36. h5
{[%clk 0:00:46.8]} 36... Bh7 {[%clk 0:01:12.9]} 37. h6 {[%clk 0:00:45.8]} 37...
Bf8 {[%clk 0:01:07.7]} 38. Rxe5 {[%clk 0:00:44.8]} 38... Nd4 {[%clk 0:00:47.8]}
39. Bxd7 {[%clk 0:00:35.7]} 39... Nxf3+ {[%clk 0:00:47]} 40. Kf2 {[%clk
0:00:35.3]} 40... Nxe5 {[%clk 0:00:47.7]} 41. Be6+ {[%clk 0:00:35.5]} 41... Kh8
{[%clk 0:00:43.6]} 42. d7 {[%clk 0:00:35.7]} 42... Be7 {[%clk 0:00:43.4]} 43.
Rg1 {[%clk 0:00:28.2]} 43... c4 {[%clk 0:00:28.5]} 44. Rg7 {[%clk 0:00:26.4]}
44... Bc5+ {[%clk 0:00:28.2]} 45. Ke1 {[%clk 0:00:24.1]} 45... Bb4+ {[%clk
0:00:24.5]} 46. Kd1 {[%clk 0:00:23.1]} 46... Ba5 {[%clk 0:00:22.5]} 47. Re7
{[%clk 0:00:22.6]} 47... Be4 {[%clk 0:00:19.4]} 48. Re8+ {[%clk 0:00:20]} 48...
Kh7 {[%clk 0:00:18.8]} 49. d8=Q {[%clk 0:00:15.4]} 49... Bf3+ {[%clk 0:00:17.6]}
50. Kc1 {[%clk 0:00:13.6]} 50... Bxd8 {[%clk 0:00:17]} 51. Rxd8 {[%clk
0:00:13.8]} 51... Kxh6 {[%clk 0:00:17.5]} 52. Bd5 {[%clk 0:00:11.4]} 52... Be2
{[%clk 0:00:14.4]} 53. Re8 {[%clk 0:00:10.6]} 53... Nd3+ {[%clk 0:00:14.8]} 54.
Kd2 {[%clk 0:00:11.2]} 54... Bf1 {[%clk 0:00:15.2]} 55. Bxc4 {[%clk 0:00:11.2]}
1-0

[Event "Early-Titled-Tuesday-Blitz-January-23-2024"]
[Site "Chess.com"]
[Date "2024.01.23"]
[Round "10"]
[White "Heinza9"]
[Black "ljuks68"]
[Result "1/2-1/2"]
[WhiteElo "2335"]
[BlackElo "2457"]
[TimeControl "180+1"]
[EndTime "9:57:05 PST"]
[Termination "Game drawn by repetition"]

1. e4 {[%clk 0:03:00.9]} 1... e6 {[%clk 0:03:00]} 2. c4 {[%clk 0:03:00.4]} 2...
d5 {[%clk 0:03:00.4]} 3. cxd5 {[%clk 0:03:00.8]} 3... exd5 {[%clk 0:03:01]} 4.
exd5 {[%clk 0:03:01.3]} 4... Nf6 {[%clk 0:03:01.3]} 5. Bb5+ {[%clk 0:03:01.5]}
5... Nbd7 {[%clk 0:03:00.8]} 6. Nc3 {[%clk 0:02:59.4]} 6... Be7 {[%clk
0:03:00.5]} 7. Nf3 {[%clk 0:02:55.9]} 7... O-O {[%clk 0:03:00.8]} 8. h3 {[%clk
0:02:55.8]} 8... Nb6 {[%clk 0:03:00.3]} 9. O-O {[%clk 0:02:54.1]} 9... Nfxd5
{[%clk 0:03:00.5]} 10. d4 {[%clk 0:02:53.6]} 10... Bf5 {[%clk 0:02:58.5]} 11.
Re1 {[%clk 0:02:49.2]} 11... c6 {[%clk 0:02:57.6]} 12. Bd3 {[%clk 0:02:43.6]}
12... Bg6 {[%clk 0:02:52.7]} 13. Bxg6 {[%clk 0:02:36.9]} 13... hxg6 {[%clk
0:02:52.4]} 14. Ne4 {[%clk 0:02:28.7]} 14... Re8 {[%clk 0:02:48.4]} 15. a3
{[%clk 0:02:06.7]} 15... Nf6 {[%clk 0:02:42.7]} 16. Neg5 {[%clk 0:01:58.2]}
16... Bd6 {[%clk 0:02:41.5]} 17. Rxe8+ {[%clk 0:01:51.3]} 17... Qxe8 {[%clk
0:02:41.4]} 18. Qb3 {[%clk 0:01:50.7]} 18... Nfd5 {[%clk 0:02:35.4]} 19. Bd2
{[%clk 0:01:49.5]} 19... Qd7 {[%clk 0:02:26.6]} 20. Re1 {[%clk 0:01:47.4]} 20...
Re8 {[%clk 0:02:25.9]} 21. Ne4 {[%clk 0:01:42.6]} 21... Bf8 {[%clk 0:02:04.5]}
22. Nc5 {[%clk 0:01:28.8]} 22... Rxe1+ {[%clk 0:02:03.9]} 23. Bxe1 {[%clk
0:01:27.5]} 23... Qc8 {[%clk 0:02:00.1]} 24. Qd3 {[%clk 0:01:24]} 24... Nd7
{[%clk 0:01:56.6]} 25. b4 {[%clk 0:01:16.4]} 25... Bxc5 {[%clk 0:01:43.1]} 26.
dxc5 {[%clk 0:01:15.9]} 26... Qe8 {[%clk 0:01:39.4]} 27. Bd2 {[%clk 0:01:14.9]}
27... Ne5 {[%clk 0:01:37.4]} 28. Qe4 {[%clk 0:01:01.7]} 28... Nxf3+ {[%clk
0:01:37]} 29. gxf3 {[%clk 0:01:01.7]} 29... Qd7 {[%clk 0:01:34.9]} 30. Kg2
{[%clk 0:00:59.9]} 30... Kh7 {[%clk 0:00:56.3]} 31. Qe5 {[%clk 0:00:53]} 31...
f6 {[%clk 0:00:50.5]} 32. Qd6 {[%clk 0:00:48.8]} 32... Qf5 {[%clk 0:00:50.1]}
33. Be3 {[%clk 0:00:36.4]} 33... Qc2 {[%clk 0:00:39.7]} 34. Kg3 {[%clk
0:00:30.4]} 34... Qd1 {[%clk 0:00:30.7]} 35. f4 {[%clk 0:00:21.8]} 35... Qg1+
{[%clk 0:00:27.2]} 36. Kf3 {[%clk 0:00:21.8]} 36... Qh1+ {[%clk 0:00:27.4]} 37.
Kg3 {[%clk 0:00:21.1]} 37... Qe4 {[%clk 0:00:24.7]} 38. Qd7 {[%clk 0:00:18.8]}
38... Nxe3 {[%clk 0:00:22.4]} 39. fxe3 {[%clk 0:00:18.9]} 39... Qxe3+ {[%clk
0:00:22.9]} 40. Kg2 {[%clk 0:00:17.6]} 40... Qe2+ {[%clk 0:00:20.1]} 41. Kg3
{[%clk 0:00:15.9]} 41... Qb5 {[%clk 0:00:20.1]} 42. f5 {[%clk 0:00:11.9]} 42...
a5 {[%clk 0:00:15.8]} 43. fxg6+ {[%clk 0:00:10.5]} 43... Kxg6 {[%clk 0:00:15.8]}
44. Qg4+ {[%clk 0:00:10.6]} 44... Kh7 {[%clk 0:00:13.3]} 45. Qf5+ {[%clk
0:00:10.1]} 45... Kg8 {[%clk 0:00:13]} 46. Qe6+ {[%clk 0:00:08.8]} 46... Kh7
{[%clk 0:00:11.5]} 47. Qf5+ {[%clk 0:00:08.5]} 47... Kh6 {[%clk 0:00:11.4]} 48.
Qf4+ {[%clk 0:00:08]} 48... Kg6 {[%clk 0:00:10.3]} 49. Qg4+ {[%clk 0:00:08.1]}
49... Kf7 {[%clk 0:00:09.9]} 50. Qd7+ {[%clk 0:00:08.2]} 50... Kf8 {[%clk
0:00:09.8]} 51. Qd8+ {[%clk 0:00:05.9]} 51... Kf7 {[%clk 0:00:10.1]} 52. Qd7+
{[%clk 0:00:06.3]} 52... Kg8 {[%clk 0:00:10.4]} 53. Qe6+ {[%clk 0:00:05.6]}
53... Kh8 {[%clk 0:00:10.7]} 54. Qe8+ {[%clk 0:00:05.3]} 54... Kh7 {[%clk
0:00:10.3]} 55. Qh5+ {[%clk 0:00:05.3]} 55... Kg8 {[%clk 0:00:11]} 56. Qe8+
{[%clk 0:00:05.5]} 56... Kh7 {[%clk 0:00:11.3]} 57. Qh5+ {[%clk 0:00:05.7]}
57... Kg8 {[%clk 0:00:11.8]} 58. Qe8+ {[%clk 0:00:05.8]} 58... Kh7 {[%clk
0:00:12.1]} 1/2-1/2

[Event "Early-Titled-Tuesday-Blitz-January-23-2024"]
[Site "Chess.com"]
[Date "2024.01.23"]
[Round "10"]
[White "kingofthenil"]
[Black "TigrVShlyape"]
[Result "0-1"]
[WhiteElo "2704"]
[BlackElo "2952"]
[TimeControl "180+1"]
[EndTime "9:57:08 PST"]
[Termination "TigrVShlyape won by resignation"]

1. e4 {[%clk 0:03:00.9]} 1... c5 {[%clk 0:02:58.6]} 2. d3 {[%clk 0:02:59.6]}
2... Nc6 {[%clk 0:02:56.1]} 3. g3 {[%clk 0:03:00]} 3... g6 {[%clk 0:02:55.9]} 4.
Bg2 {[%clk 0:03:00.5]} 4... Bg7 {[%clk 0:02:56.4]} 5. f4 {[%clk 0:03:01.3]} 5...
e6 {[%clk 0:02:53.9]} 6. Nf3 {[%clk 0:03:02.2]} 6... Nge7 {[%clk 0:02:53.9]} 7.
O-O {[%clk 0:03:03.1]} 7... d6 {[%clk 0:02:52.4]} 8. c3 {[%clk 0:03:04]} 8...
O-O {[%clk 0:02:46.2]} 9. Be3 {[%clk 0:03:04.4]} 9... b6 {[%clk 0:02:44.7]} 10.
d4 {[%clk 0:03:04.8]} 10... cxd4 {[%clk 0:02:41.5]} 11. cxd4 {[%clk 0:03:05.7]}
11... Ba6 {[%clk 0:02:40.5]} 12. Re1 {[%clk 0:03:06]} 12... Rc8 {[%clk
0:02:36.4]} 13. Nc3 {[%clk 0:03:06.1]} 13... Na5 {[%clk 0:02:13.3]} 14. Bf2
{[%clk 0:03:04.6]} 14... Bb7 {[%clk 0:01:58.2]} 15. Rc1 {[%clk 0:03:03.4]} 15...
Qd7 {[%clk 0:01:56.1]} 16. Bf1 {[%clk 0:02:35.1]} 16... Nc4 {[%clk 0:01:23.7]}
17. b3 {[%clk 0:02:23.3]} 17... Na5 {[%clk 0:01:22.9]} 18. Qd2 {[%clk 0:02:21]}
18... Rc7 {[%clk 0:01:19.1]} 19. Bb5 {[%clk 0:01:44.4]} 19... Qc8 {[%clk
0:01:15.8]} 20. Bd3 {[%clk 0:01:41.6]} 20... Qb8 {[%clk 0:01:06.3]} 21. Nb5
{[%clk 0:01:17.9]} 21... Rxc1 {[%clk 0:01:04.4]} 22. Rxc1 {[%clk 0:01:18.8]}
22... Rc8 {[%clk 0:00:57.6]} 23. Rxc8+ {[%clk 0:01:10.4]} 23... Nxc8 {[%clk
0:00:57.1]} 24. Qc3 {[%clk 0:00:55.1]} 24... Nc6 {[%clk 0:00:56.1]} 25. e5
{[%clk 0:00:48.7]} 25... a6 {[%clk 0:00:51.7]} 26. Na3 {[%clk 0:00:41.5]} 26...
b5 {[%clk 0:00:51.8]} 27. Nc2 {[%clk 0:00:39]} 27... N6e7 {[%clk 0:00:50]} 28.
Ng5 {[%clk 0:00:35.5]} 28... Nd5 {[%clk 0:00:46.8]} 29. Qa5 {[%clk 0:00:31.7]}
29... Qc7 {[%clk 0:00:36.3]} 30. Qxc7 {[%clk 0:00:31.6]} 30... Nxc7 {[%clk
0:00:37.2]} 31. Ne4 {[%clk 0:00:31.1]} 31... Bf8 {[%clk 0:00:22.5]} 32. Nf6+
{[%clk 0:00:23.4]} 32... Kg7 {[%clk 0:00:21.7]} 33. Be1 {[%clk 0:00:20.5]} 33...
Be7 {[%clk 0:00:21.3]} 34. Ba5 {[%clk 0:00:19.2]} 34... Nd5 {[%clk 0:00:20.7]}
35. Nd7 {[%clk 0:00:12]} 35... f6 {[%clk 0:00:18.6]} 36. Be4 {[%clk 0:00:10.6]}
36... dxe5 {[%clk 0:00:17.4]} 37. dxe5 {[%clk 0:00:07.7]} 37... f5 {[%clk
0:00:16.6]} 38. Bg2 {[%clk 0:00:06.9]} 38... Kf7 {[%clk 0:00:16.7]} 39. Nd4
{[%clk 0:00:05.2]} 39... Ke8 {[%clk 0:00:15.1]} 40. Nxe6 {[%clk 0:00:01.5]}
40... Kxd7 {[%clk 0:00:14]} 41. Ng7 {[%clk 0:00:01.6]} 41... Bc5+ {[%clk
0:00:13.5]} 42. Kh1 {[%clk 0:00:01.2]} 42... Nce7 {[%clk 0:00:14.1]} 43. Bd2
{[%clk 0:00:01.2]} 43... Bc6 {[%clk 0:00:13.7]} 44. h4 {[%clk 0:00:01.2]} 44...
Nc7 {[%clk 0:00:13.6]} 45. h5 {[%clk 0:00:01.8]} 45... Bxg2+ {[%clk 0:00:11.7]}
46. Kxg2 {[%clk 0:00:02.7]} 46... Ne6 {[%clk 0:00:11.9]} 47. hxg6 {[%clk
0:00:02.7]} 47... hxg6 {[%clk 0:00:11.6]} 48. Nxe6 {[%clk 0:00:02.3]} 48... Kxe6
{[%clk 0:00:12]} 49. Kf3 {[%clk 0:00:02.9]} 49... Kd5 {[%clk 0:00:12.4]} 50. g4
{[%clk 0:00:03.2]} 50... Nc6 {[%clk 0:00:12.2]} 51. gxf5 {[%clk 0:00:04.1]}
51... gxf5 {[%clk 0:00:11.9]} 52. Kg3 {[%clk 0:00:04.1]} 52... Nd4 {[%clk
0:00:12.2]} 53. Kh4 {[%clk 0:00:04.7]} 53... Ne6 {[%clk 0:00:12.4]} 54. Kh5
{[%clk 0:00:04.9]} 54... Ke4 {[%clk 0:00:12.8]} 55. Kg6 {[%clk 0:00:04.7]} 55...
Nxf4+ {[%clk 0:00:13.2]} 56. Bxf4 {[%clk 0:00:05]} 56... Kxf4 {[%clk 0:00:13.7]}
57. e6 {[%clk 0:00:05.9]} 57... Ke5 {[%clk 0:00:14.1]} 58. Kf7 {[%clk
0:00:02.2]} 58... f4 {[%clk 0:00:14.2]} 59. b4 {[%clk 0:00:02.4]} 59... Bxb4
{[%clk 0:00:14.4]} 60. e7 {[%clk 0:00:02.8]} 60... Bxe7 {[%clk 0:00:14.5]} 61.
Kxe7 {[%clk 0:00:03.7]} 61... f3 {[%clk 0:00:14.9]} 0-1

[Event "Early-Titled-Tuesday-Blitz-January-23-2024"]
[Site "Chess.com"]
[Date "2024.01.23"]
[Round "10"]
[White "ViratKohl_i"]
[Black "wanyaland"]
[Result "1-0"]
[WhiteElo "2609"]
[BlackElo "2476"]
[TimeControl "180+1"]
[EndTime "9:57:09 PST"]
[Termination "ViratKohl_i won on time"]

1. e4 {[%clk 0:03:00.9]} 1... c5 {[%clk 0:02:59.7]} 2. Nf3 {[%clk 0:03:00.7]}
2... e6 {[%clk 0:02:59.9]} 3. d4 {[%clk 0:02:58.6]} 3... cxd4 {[%clk 0:03:00.8]}
4. Nxd4 {[%clk 0:02:59.5]} 4... Nc6 {[%clk 0:02:56.5]} 5. Nc3 {[%clk 0:02:58.5]}
5... Qc7 {[%clk 0:02:56.1]} 6. Be3 {[%clk 0:02:57.9]} 6... a6 {[%clk 0:02:55.8]}
7. g4 {[%clk 0:02:55.9]} 7... b5 {[%clk 0:02:54.5]} 8. Nxc6 {[%clk 0:02:52.4]}
8... dxc6 {[%clk 0:02:54.4]} 9. Bg2 {[%clk 0:02:50.8]} 9... Bb7 {[%clk
0:02:54.4]} 10. Qf3 {[%clk 0:02:34.4]} 10... Nf6 {[%clk 0:02:49.4]} 11. g5
{[%clk 0:02:32.1]} 11... Nd7 {[%clk 0:02:49]} 12. Kd1 {[%clk 0:02:31.5]} 12...
Ne5 {[%clk 0:02:48.4]} 13. Qg3 {[%clk 0:02:30.1]} 13... Bd6 {[%clk 0:02:45.1]}
14. f4 {[%clk 0:02:26.1]} 14... Nc4 {[%clk 0:02:44.2]} 15. e5 {[%clk 0:02:25.3]}
15... Nxb2+ {[%clk 0:02:38.9]} 16. Ke2 {[%clk 0:02:21.7]} 16... Be7 {[%clk
0:02:33.9]} 17. Ne4 {[%clk 0:02:11.7]} 17... Na4 {[%clk 0:02:26.9]} 18. Rad1
{[%clk 0:02:07.7]} 18... c5 {[%clk 0:02:15.8]} 19. f5 {[%clk 0:01:30.7]} 19...
exf5 {[%clk 0:02:03.6]} 20. Nd6+ {[%clk 0:01:28.2]} 20... Bxd6 {[%clk
0:02:03.1]} 21. exd6 {[%clk 0:01:23]} 21... Qd7 {[%clk 0:02:02.1]} 22. Qe5+
{[%clk 0:01:16.2]} 22... Kd8 {[%clk 0:01:59.2]} 23. Qxg7 {[%clk 0:01:03.6]}
23... Re8 {[%clk 0:01:54.3]} 24. Bxb7 {[%clk 0:01:00.2]} 24... Qxb7 {[%clk
0:01:36.6]} 25. d7 {[%clk 0:00:45.1]} 25... Nc3+ {[%clk 0:01:05.4]} 26. Kd2
{[%clk 0:00:15.9]} 26... Rxe3 {[%clk 0:00:32.4]} 27. Kxe3 {[%clk 0:00:10.8]}
27... Qe4+ {[%clk 0:00:31.2]} 28. Kd2 {[%clk 0:00:11]} 28... Nxd1 {[%clk
0:00:27.2]} 29. Rxd1 {[%clk 0:00:09.1]} 29... Kxd7 {[%clk 0:00:19.3]} 30. Kc1+
{[%clk 0:00:08.6]} 30... Kc7 {[%clk 0:00:17]} 31. Qxf7+ {[%clk 0:00:08]} 31...
Kb6 {[%clk 0:00:17.2]} 32. Qf6+ {[%clk 0:00:06.9]} 32... Ka5 {[%clk 0:00:16.2]}
33. a3 {[%clk 0:00:06.1]} 33... Qe3+ {[%clk 0:00:13.8]} 34. Kb2 {[%clk
0:00:04.3]} 34... Re8 {[%clk 0:00:11.6]} 35. Rd3 {[%clk 0:00:04.2]} 35... Qe5+
{[%clk 0:00:10.8]} 36. Qxe5 {[%clk 0:00:04.6]} 36... Rxe5 {[%clk 0:00:11.5]} 37.
Rd7 {[%clk 0:00:03.9]} 37... f4 {[%clk 0:00:08.1]} 38. h4 {[%clk 0:00:04.5]}
38... Rf5 {[%clk 0:00:08.3]} 39. Rxh7 {[%clk 0:00:03.6]} 39... f3 {[%clk
0:00:07.4]} 40. g6 {[%clk 0:00:04.5]} 40... f2 {[%clk 0:00:04.8]} 41. g7 {[%clk
0:00:04.8]} 41... f1=Q {[%clk 0:00:04.2]} 42. g8=Q {[%clk 0:00:05.1]} 1-0

[Event "Early-Titled-Tuesday-Blitz-January-23-2024"]
[Site "Chess.com"]
[Date "2024.01.23"]
[Round "10"]
[White "chess123456s"]
[Black "luckyswitchback"]
[Result "1/2-1/2"]
[WhiteElo "2551"]
[BlackElo "2693"]
[TimeControl "180+1"]
[EndTime "9:57:10 PST"]
[Termination "Game drawn by repetition"]

1. d4 {[%clk 0:03:00.9]} 1... Nf6 {[%clk 0:02:59.2]} 2. Nc3 {[%clk 0:03:01.5]}
2... d5 {[%clk 0:02:58.9]} 3. Bf4 {[%clk 0:03:01.4]} 3... a6 {[%clk 0:02:56.8]}
4. e3 {[%clk 0:03:00.7]} 4... Bf5 {[%clk 0:02:55.4]} 5. Nf3 {[%clk 0:02:59.9]}
5... e6 {[%clk 0:02:55.3]} 6. Ne5 {[%clk 0:02:59.4]} 6... Nbd7 {[%clk 0:02:54]}
7. g4 {[%clk 0:02:59.3]} 7... Bg6 {[%clk 0:02:53.5]} 8. h4 {[%clk 0:02:59.1]}
8... h6 {[%clk 0:02:35.9]} 9. Nxg6 {[%clk 0:02:57.3]} 9... fxg6 {[%clk
0:02:36.8]} 10. Bd3 {[%clk 0:02:57.7]} 10... Kf7 {[%clk 0:02:33.3]} 11. Qf3
{[%clk 0:02:57.9]} 11... Bb4 {[%clk 0:02:19.8]} 12. O-O-O {[%clk 0:02:51.2]}
12... Bxc3 {[%clk 0:02:11.2]} 13. bxc3 {[%clk 0:02:52.1]} 13... Kg8 {[%clk
0:01:53.3]} 14. Bxg6 {[%clk 0:02:48.9]} 14... Qe7 {[%clk 0:01:50.5]} 15. g5
{[%clk 0:02:47.6]} 15... Qa3+ {[%clk 0:01:50.5]} 16. Kd2 {[%clk 0:02:47]} 16...
Ne4+ {[%clk 0:01:47.7]} 17. Bxe4 {[%clk 0:02:46.7]} 17... dxe4 {[%clk
0:01:48.6]} 18. Qxe4 {[%clk 0:02:46.7]} 18... Qxa2 {[%clk 0:01:49]} 19. gxh6
{[%clk 0:02:44.7]} 19... Qd5 {[%clk 0:01:38.1]} 20. Qxd5 {[%clk 0:02:27.4]}
20... exd5 {[%clk 0:01:39]} 21. hxg7 {[%clk 0:02:27.9]} 21... Kxg7 {[%clk
0:01:37.6]} 22. Rdg1+ {[%clk 0:02:28.3]} 22... Kf7 {[%clk 0:01:37.6]} 23. Bxc7
{[%clk 0:02:27.9]} 23... a5 {[%clk 0:01:35.7]} 24. Rg5 {[%clk 0:02:23.8]} 24...
Nf6 {[%clk 0:01:33.8]} 25. f3 {[%clk 0:02:22.5]} 25... Rag8 {[%clk 0:01:30.1]}
26. f4 {[%clk 0:02:11.8]} 26... Ne4+ {[%clk 0:01:27.2]} 27. Ke2 {[%clk
0:02:05.2]} 27... Ng3+ {[%clk 0:01:16.3]} 28. Rxg3 {[%clk 0:01:59.9]} 28... Rxg3
{[%clk 0:01:17.2]} 29. Bxa5 {[%clk 0:01:55]} 29... Re8 {[%clk 0:01:13.3]} 30.
Kf2 {[%clk 0:01:46.9]} 30... Rexe3 {[%clk 0:01:09.3]} 31. h5 {[%clk 0:01:47]}
31... Rgf3+ {[%clk 0:00:45.5]} 32. Kg2 {[%clk 0:01:47.3]} 32... Rxf4 {[%clk
0:00:41.5]} 33. h6 {[%clk 0:01:47]} 33... Re6 {[%clk 0:00:34]} 34. Kg3 {[%clk
0:01:32]} 34... Rf5 {[%clk 0:00:18.9]} 35. Rh4 {[%clk 0:01:31.6]} 35... Rg6+
{[%clk 0:00:16.3]} 36. Kh2 {[%clk 0:01:31.6]} 36... Rf2+ {[%clk 0:00:16.5]} 37.
Kh1 {[%clk 0:01:30.8]} 37... Rf1+ {[%clk 0:00:11.1]} 38. Kh2 {[%clk 0:01:30.8]}
38... Rf2+ {[%clk 0:00:11.6]} 39. Kh1 {[%clk 0:01:30.9]} 39... Ra6 {[%clk
0:00:07.8]} 40. h7 {[%clk 0:01:12.9]} 40... Rxa5 {[%clk 0:00:07.8]} 41. Rf4+
{[%clk 0:01:12.8]} 41... Rxf4 {[%clk 0:00:08.3]} 42. h8=Q {[%clk 0:01:13.2]}
42... Ra1+ {[%clk 0:00:07.6]} 43. Kg2 {[%clk 0:01:13.2]} 43... Raf1 {[%clk
0:00:07.9]} 44. Qh5+ {[%clk 0:01:10.2]} 44... Kf6 {[%clk 0:00:06.1]} 45. Qe5+
{[%clk 0:01:10.1]} 45... Kg6 {[%clk 0:00:06.1]} 46. Qxd5 {[%clk 0:01:09]} 46...
Rf7 {[%clk 0:00:04.9]} 47. Qe4+ {[%clk 0:01:07.2]} 47... Kg7 {[%clk 0:00:04.1]}
48. Qe5+ {[%clk 0:01:03.2]} 48... R1f6 {[%clk 0:00:04.3]} 49. d5 {[%clk
0:01:01.2]} 49... Kg8 {[%clk 0:00:04.5]} 50. Qe8+ {[%clk 0:00:48.7]} 50... Kh7
{[%clk 0:00:04.2]} 51. Qe4+ {[%clk 0:00:44.1]} 51... Rg6+ {[%clk 0:00:04.2]} 52.
Kh3 {[%clk 0:00:44.7]} 52... Rg7 {[%clk 0:00:02.7]} 53. Kh4 {[%clk 0:00:41.8]}
53... Kh8 {[%clk 0:00:02.5]} 54. Qe8+ {[%clk 0:00:38.9]} 54... Rg8 {[%clk
0:00:02.9]} 55. Qe5+ {[%clk 0:00:38.2]} 55... Kh7 {[%clk 0:00:02.9]} 56. Qe7+
{[%clk 0:00:31.8]} 56... R8g7 {[%clk 0:00:02.9]} 57. Qe4 {[%clk 0:00:31.7]}
57... Kh8 {[%clk 0:00:02.9]} 58. Qe8+ {[%clk 0:00:29.1]} 58... Kh7 {[%clk
0:00:03.1]} 59. Qe4 {[%clk 0:00:25.4]} 1/2-1/2